bitfinex-derivatives/quotes_BNBF0:USTF0_20250329
["timestamp","ask_amount","ask_price","bid_price","bid_amount"]
[1743281039539,1.39364504,602.75,602.21,1.23561732]
[1743281039739,0.986,602.95,602.21,1.23561732]
[1743281039740,1.39364504,602.74,602.21,1.23561732]
[1743281039936,1.39364504,602.73,602.21,1.23561732]
[1743281040133,1.39364504,602.72,602.21,1.23561732]
[1743281040334,1.11931442,602.76,602.21,1.23561732]
[1743281040635,0.28883503,602.93,602.15,0.33214315]
[1743281040636,1.11931442,602.71,602.15,0.33214315]
[1743281041032,1.11931442,602.7,602.15,0.33214315]
[1743281041739,1.11931442,602.69,602.15,0.33214315]
[1743281042443,2.25131442,602.69,602.15,0.33214315]
[1743281042641,1.132,602.69,602.15,0.33214315]
[1743281055966,2.171,602.69,602.15,0.33214315]
[1743281058356,3.219,602.69,602.15,0.33214315]
[1743281063470,3.219,602.69,602.19,1.23561732]
[1743281064870,3.219,602.69,602.15,0.33214315]
[1743281067574,1.38992571,602.68,602.15,0.33214315]
[1743281067867,2.087,602.69,602.08,1.23561732]
[1743281068068,1.38990138,602.68,602.08,1.23561732]
[1743281068260,1.38990138,602.67,602.08,1.23561732]
[1743281068464,2.087,602.69,602.08,1.23561732]
[1743281068465,1.38972626,602.66,602.08,1.23561732]
[1743281068666,2.087,602.69,602.0,1.23561732]
[1743281068867,1.11545062,602.65,602.0,1.23561732]
[1743281069867,1.048,602.69,602.0,1.23561732]
[1743281069868,2.50495291,602.64,602.0,1.23561732]
[1743281070072,1.38950229,602.63,602.0,1.23561732]
[1743281070264,1.38950229,602.63,601.93,0.28888778]
[1743281070265,1.11545062,602.64,601.93,1.5245051]
[1743281070463,1.38937428,602.63,601.93,1.5245051]
[1743281070664,2.50480343,602.62,601.93,1.5245051]
[1743281070977,1.11545062,602.62,601.93,1.5245051]
[1743281071371,1.276,602.61,601.93,1.5245051]
[1743281071670,2.39145062,602.61,601.93,1.5245051]
[1743281071868,1.11545062,602.6,601.93,1.5245051]
[1743281072065,2.05845062,602.6,601.93,1.5245051]
[1743281072567,2.05845062,602.6,601.97,1.23561732]
[1743281072772,1.11545062,602.59,601.97,1.23561732]
[1743281073472,1.11545062,602.58,601.97,1.23561732]
[1743281073865,0.943,602.6,601.97,1.23561732]
[1743281074679,2.50382786,602.59,601.97,1.23561732]
[1743281074873,1.1150026,602.59,601.97,1.23561732]
[1743281075267,1.1150026,602.59,601.91,0.28892136]
[1743281075468,1.1150026,602.58,601.91,0.28892136]
[1743281076172,1.1150026,602.57,601.91,0.28892136]
[1743281076771,1.1150026,602.56,601.91,0.28892136]
[1743281077380,2.4390026,602.55,601.91,0.28892136]
[1743281078068,2.4390026,602.55,601.6,1.23561732]
[1743281078273,5.63042147,602.54,601.7,0.28898974]
[1743281078472,4.51541887,602.53,601.7,0.28898974]
[1743281078670,4.51541887,602.52,601.6,1.23561732]
[1743281078870,2.8976323,602.53,601.6,1.23561732]
[1743281078871,4.51487529,602.51,601.6,1.23561732]
[1743281079071,5.96354238,602.5,601.6,1.23561732]
[1743281079276,5.96357147,602.49,601.6,1.23561732]
[1743281079573,5.96357147,602.48,601.6,1.23561732]
[1743281079776,6.62066955,602.47,601.6,1.23561732]
[1743281079978,6.62067532,602.46,601.47,0.28907976]
[1743281080180,6.62067532,602.45,601.47,0.28907976]
[1743281080481,6.62067532,602.44,601.47,0.28907976]
[1743281080779,6.62067532,602.43,601.47,0.28907976]
[1743281081078,6.62067532,602.42,601.47,0.28907976]
[1743281081280,6.62067532,602.41,601.47,0.28907976]
[1743281081578,6.62067532,602.4,601.47,0.28907976]
[1743281081773,4.50907493,602.39,601.47,0.28907976]
[1743281081980,4.50907493,602.38,601.47,0.28907976]
[1743281082173,4.50907493,602.37,601.47,0.28907976]
[1743281082378,4.50907493,602.36,601.47,0.28907976]
[1743281082578,4.50907493,602.35,601.47,0.28907976]
[1743281082778,4.50907493,602.34,601.47,0.28907976]
[1743281083077,4.50907493,602.33,601.47,0.28907976]
[1743281083277,4.50907493,602.32,601.47,0.28907976]
[1743281083478,4.50907493,602.31,601.47,0.28907976]
[1743281083678,4.50689404,602.3,601.47,0.28907976]
[1743281083876,4.50689404,602.29,601.47,0.28907976]
[1743281084078,4.50689404,602.28,601.47,0.28907976]
[1743281084278,1.38636345,602.27,601.47,0.28907976]
[1743281084473,1.38636345,602.26,601.47,0.28907976]
[1743281084680,1.38636345,602.25,600.73,1.23561732]
[1743281084878,1.38636345,602.24,600.75,0.33291718]
[1743281085080,1.38636345,602.23,601.47,0.28923353]
[1743281085282,1.38636345,602.22,600.75,0.33291718]
[1743281085480,1.38636345,602.21,600.75,0.33291718]
[1743281085676,1.38636345,602.2,600.75,0.33291718]
[1743281085875,1.38636345,602.19,600.75,0.33291718]
[1743281086076,1.38636345,602.18,600.75,0.33291718]
[1743281086374,3.16899315,602.17,600.75,0.33291718]
[1743281086580,1.38636345,602.16,600.76,0.28920949]
[1743281086782,2.8976323,602.17,600.87,1.23561732]
[1743281087083,2.8976323,602.17,600.89,0.33283962]
[1743281087283,1.1150026,602.15,600.89,0.33283962]
[1743281087879,1.1150026,602.14,600.89,0.33283962]
[1743281088384,1.1150026,602.14,600.9,1.23561732]
[1743281088581,2.0720026,602.13,600.92,0.332823]
[1743281089279,1.1150026,602.12,600.92,0.332823]
[1743281090083,1.1150026,602.11,600.92,0.332823]
[1743281090585,1.1150026,602.1,600.92,0.332823]
[1743281091588,0.957,602.13,600.92,0.332823]
[1743281092184,1.10814485,602.12,600.92,0.332823]
[1743281093189,1.10814485,602.11,600.92,0.332823]
[1743281094084,1.10814485,602.1,600.92,0.332823]
[1743281094690,1.10814485,602.09,600.92,0.332823]
[1743281095592,1.10814485,602.08,600.92,0.332823]
[1743281096493,0.957,602.13,600.92,0.332823]
[1743281096894,1.336,602.12,600.92,0.332823]
[1743281097095,2.44330014,602.12,600.92,0.332823]
[1743281097991,1.10730014,602.11,600.92,0.332823]
[1743281098596,1.336,602.12,600.92,0.332823]
[1743281101196,1.336,602.12,600.92,1.56844032]
[1743281102892,1.336,602.12,600.92,0.332823]
[1743281103901,2.48441013,602.11,600.92,0.332823]
[1743281104096,1.3779936,602.1,600.92,0.332823]
[1743281104293,1.3779936,602.09,600.92,0.332823]
[1743281104498,1.3779936,602.08,600.92,0.332823]
[1743281104693,1.37780257,602.07,600.92,1.56844032]
[1743281104900,1.37780257,602.06,600.92,1.56844032]
[1743281105098,1.37780257,602.05,600.92,1.56844032]
[1743281105306,1.37780257,602.04,600.92,1.56844032]
[1743281105497,1.37780257,602.03,600.92,1.56844032]
[1743281105693,1.37780257,602.02,600.92,1.56844032]
[1743281105896,1.37780257,602.01,600.92,1.56844032]
[1743281106092,1.37780257,602.0,600.92,1.56844032]
[1743281106299,1.37780257,601.99,600.92,1.56844032]
[1743281106499,1.37780257,601.98,600.92,0.332823]
[1743281106699,2.87563995,602.0,600.92,0.332823]
[1743281106996,1.10641653,601.97,600.92,0.332823]
[1743281107195,1.37725932,601.96,600.92,0.332823]
[1743281107399,1.37695296,601.95,600.92,0.332823]
[1743281107595,2.87507943,601.96,600.92,0.332823]
[1743281107807,1.37698396,601.95,600.92,0.332823]
[1743281108009,2.87507943,601.96,600.92,0.332823]
[1743281108305,1.10641653,601.94,600.98,1.23561732]
[1743281108601,1.10641653,601.94,600.99,0.33278423]
[1743281109097,1.10641653,601.93,600.99,0.33278423]
[1743281110002,1.10641653,601.92,600.99,0.33278423]
[1743281110697,1.10641653,601.92,601.01,1.23561732]
[1743281111000,1.10641653,601.91,601.02,0.33276762]
[1743281111601,0.823,601.9,601.02,0.33276762]
[1743281112603,1.044,601.89,601.02,0.33276762]
[1743281112808,1.044,601.89,601.09,1.23561732]
[1743281113004,1.044,601.89,601.1,0.33272334]
[1743281114604,1.044,601.89,601.11,1.23561732]
[1743281114804,1.044,601.89,601.12,0.33271227]
[1743281116199,1.044,601.89,601.26,1.23561732]
[1743281116799,1.06,601.88,601.26,1.23561732]
[1743281118401,1.06,601.88,601.23,1.23561732]
[1743281119810,1.06,601.88,601.24,0.33264586]
[1743281120207,1.06,601.88,601.3,1.23561732]
[1743281122808,1.06,601.88,601.4,1.23561732]
[1743281124512,1.06,601.88,601.42,1.23561732]
[1743281126219,1.06,601.88,601.44,1.23561732]
[1743281128313,1.06,601.88,601.43,1.23561732]
[1743281128727,0.977,601.87,601.43,1.23561732]
[1743281131232,0.977,601.87,601.48,1.23561732]
[1743281132728,0.977,601.87,601.56,1.23561732]
[1743281134832,0.977,601.87,601.57,0.33246338]
[1743281135226,0.977,601.87,601.6,1.23561732]
[1743281137027,0.977,601.87,601.58,1.23561732]
[1743281137230,0.977,601.87,601.59,0.33245233]
[1743281138231,1.084,601.86,601.59,0.33245233]
[1743281146540,0.937,601.85,601.59,0.33245233]
[1743281149151,0.937,601.85,601.59,1.56806965]
[1743281151743,0.937,601.85,601.6,1.23561732]
[1743281151947,0.937,601.85,601.61,0.33244128]
[1743281156044,0.937,601.85,601.65,1.23561732]
[1743281156244,0.937,601.85,601.66,0.33241365]
[1743281157852,0.937,601.85,601.79,1.23561732]
[1743281159349,0.937,601.85,601.78,1.23561732]
[1743281161148,0.937,601.85,601.68,0.28901974]
[1743281161149,0.937,601.85,601.69,1.4841977]
[1743281161348,0.937,601.85,601.7,0.33239155]
[1743281162651,0.937,601.85,601.78,2.53022023]
[1743281164650,0.937,601.85,601.76,2.53022023]
[1743281167152,0.937,601.85,601.78,1.48677421]
[1743281168657,0.937,601.85,601.82,1.48677421]
[1743281171557,0.937,601.85,601.78,2.53022023]
[1743281172157,0.937,601.85,601.78,2.81923517]
[1743281173557,0.937,601.85,601.78,0.28901494]
[1743281174560,1.343,601.99,601.78,0.28901494]
[1743281174760,1.343,601.99,601.73,0.33237498]
[1743281175261,1.343,601.99,601.78,0.28903775]
[1743281177157,1.343,601.99,601.85,1.24038505]
[1743281178865,1.343,601.99,601.81,1.24038505]
[1743281181269,1.343,601.99,601.8,0.28903294]
[1743281183770,1.343,601.99,601.77,1.24038505]
[1743281185074,1.554,602.03,601.77,1.24038505]
[1743281185275,1.554,602.03,601.78,0.28903775]
[1743281186780,1.554,602.03,601.74,1.24038505]
[1743281187177,1.554,602.03,601.78,0.28903654]
[1743281188377,0.871,602.02,601.78,0.28903654]
[1743281189880,0.871,602.02,601.73,1.57276003]
[1743281190076,0.871,602.02,601.73,0.33237498]
[1743281190279,0.871,602.02,601.78,0.28903895]
[1743281195678,0.871,602.02,601.75,1.24038505]
[1743281195978,0.871,602.02,601.78,0.28903654]
[1743281198786,0.871,602.02,601.75,1.24038505]
[1743281199287,0.871,602.02,601.75,1.5294384]
[1743281199688,0.871,602.02,601.76,1.24038505]
[1743281201996,0.871,602.02,601.74,1.24038505]
[1743281204393,0.871,602.02,601.73,0.33237498]
[1743281205698,0.871,602.02,601.62,1.52947322]
[1743281205997,0.871,602.02,601.67,1.24038505]
[1743281207793,0.871,602.02,601.65,1.24038505]
[1743281210689,1.079,602.01,601.65,1.24038505]
[1743281211089,1.079,602.01,601.53,0.28911819]
[1743281211090,1.079,602.01,601.58,1.24038505]
[1743281215191,1.079,602.01,601.53,0.2891278]
[1743281216793,1.079,602.01,601.51,1.24038505]
[1743281217295,1.079,602.01,601.53,0.28913621]
[1743281219692,1.079,602.01,601.48,1.24038505]
[1743281220094,1.079,602.01,601.53,0.28913981]
[1743281220496,1.079,602.01,601.48,1.24038505]
[1743281221601,1.066,602.0,601.48,1.24038505]
[1743281221800,1.066,602.0,601.45,0.28915903]
[1743281222694,1.066,602.0,601.15,1.24038505]
[1743281222899,1.066,602.0,601.16,0.33269013]
[1743281223099,1.066,602.0,601.45,0.28919988]
[1743281223499,1.066,602.0,601.16,0.33269013]
[1743281224800,1.066,602.0,601.17,0.28923353]
[1743281225604,0.839,601.99,601.17,0.28923353]
[1743281225808,0.839,601.99,601.16,0.33269013]
[1743281226000,0.839,601.99,601.17,0.28924074]
[1743281226509,1.325,601.98,601.17,0.28924074]
[1743281228204,1.325,601.98,601.17,1.52962579]
[1743281229007,1.325,601.98,601.17,1.24038505]
[1743281229315,1.325,601.98,601.17,1.52962579]
[1743281229508,1.325,601.98,601.17,0.28924074]
[1743281231904,1.325,601.98,601.16,0.33269013]
[1743281232305,1.325,601.98,601.17,0.28924195]
[1743281232709,1.11140453,601.97,601.17,0.28924195]
[1743281233110,1.325,601.98,601.17,0.28924195]
[1743281234107,1.11131535,601.97,601.17,0.28924195]
[1743281234708,1.11131535,601.96,601.17,0.28924195]
[1743281234916,1.11131535,601.96,601.16,0.33269013]
[1743281235118,1.325,601.98,601.16,0.33269013]
[1743281235308,1.325,601.98,601.17,0.28924435]
[1743281235705,1.96508203,601.97,601.17,0.28924435]
[1743281235907,1.11108203,601.96,601.17,0.28924435]
[1743281236107,1.38354374,601.95,601.17,0.28924435]
[1743281236307,1.38354374,601.94,601.17,0.28924435]
[1743281236617,1.38354374,601.93,601.17,0.28924435]
[1743281236806,1.38310056,601.92,601.17,0.28924435]
[1743281237011,1.38310056,601.91,601.17,0.28924435]
[1743281237211,1.38310056,601.9,601.17,0.28924435]
[1743281237413,1.38310056,601.89,601.17,0.28924435]
[1743281237609,1.38249581,601.88,601.17,0.28924435]
[1743281237809,1.11108203,601.89,601.16,0.33269013]
[1743281238015,2.49356446,601.88,601.16,0.33269013]
[1743281238216,1.38248243,601.87,601.16,0.33269013]
[1743281238414,1.38248243,601.86,600.89,1.24038505]
[1743281238615,4.4945302,601.85,600.89,1.24038505]
[1743281238814,5.15935214,601.84,600.89,1.24038505]
[1743281239017,5.15935214,601.83,600.89,1.24038505]
[1743281239217,4.49449203,601.82,600.89,1.24038505]
[1743281239420,4.49449203,601.81,600.89,1.24038505]
[1743281239618,5.15937448,601.8,600.9,0.28936942]
[1743281239822,4.49449203,601.79,600.9,0.28936942]
[1743281240013,1.38248243,601.78,600.9,0.28936942]
[1743281240219,1.38248243,601.77,600.9,0.28936942]
[1743281240418,1.38007002,601.76,600.9,0.28936942]
[1743281240617,1.38007002,601.75,600.9,0.28936942]
[1743281240816,1.38007002,601.74,600.9,0.28936942]
[1743281241018,4.26681176,601.73,600.9,0.28936942]
[1743281241317,1.38007002,601.72,600.9,0.28936942]
[1743281241521,1.38007002,601.71,600.9,0.28936942]
[1743281241719,1.38007002,601.7,600.9,0.28936942]
[1743281241919,3.58472146,601.69,600.9,0.28936942]
[1743281242219,1.38007002,601.68,600.9,0.28936942]
[1743281242419,1.38007002,601.67,600.9,0.28936942]
[1743281242619,1.38007002,601.66,600.9,0.28936942]
[1743281242814,1.38007002,601.65,600.9,0.28936942]
[1743281243017,1.38007002,601.64,600.9,0.28936942]
[1743281243218,1.38007002,601.63,600.9,0.28936942]
[1743281243420,1.38007002,601.62,600.9,0.28936942]
[1743281243721,1.38007002,601.61,600.9,0.28936942]
[1743281244017,1.38007002,601.6,600.36,1.24038505]
[1743281244226,1.38007002,601.6,600.83,0.28949098]
[1743281244227,1.38007002,601.59,600.83,0.28949098]
[1743281244429,1.38007002,601.58,600.83,0.28949098]
[1743281244620,1.38007002,601.57,600.38,0.33312235]
[1743281244821,1.38007002,601.56,600.38,0.33312235]
[1743281245022,1.38007002,601.55,600.38,0.33312235]
[1743281245221,1.38007002,601.54,600.38,0.33312235]
[1743281245528,1.38007002,601.53,600.38,0.33312235]
[1743281245829,1.38007002,601.52,600.39,0.28949941]
[1743281246026,1.38007002,601.51,600.41,0.33310571]
[1743281246226,1.11108203,601.53,600.41,0.33310571]
[1743281246421,1.11108203,601.51,600.41,0.33310571]
[1743281247021,1.3738503,601.5,600.41,0.33310571]
[1743281247327,1.3738503,601.49,600.41,0.33310571]
[1743281247630,1.11108203,601.5,600.41,0.33310571]
[1743281247829,1.37327477,601.49,600.41,0.33310571]
[1743281248025,1.37327477,601.48,600.41,0.33310571]
[1743281248226,1.37327477,601.47,600.41,0.33310571]
[1743281248428,2.87523386,601.49,600.41,0.33310571]
[1743281248429,1.37327477,601.46,600.41,0.33310571]
[1743281248723,4.24850863,601.45,600.41,0.33310571]
[1743281248923,1.37327477,601.44,600.41,0.33310571]
[1743281249231,1.37285171,601.43,600.41,0.33310571]
[1743281249531,2.87523386,601.44,600.41,0.33310571]
[1743281249726,1.11108203,601.42,600.41,0.33310571]
[1743281250127,1.11108203,601.41,600.41,0.33310571]
[1743281250528,1.11108203,601.4,600.41,0.33310571]
[1743281251335,1.11108203,601.39,600.41,0.33310571]
[1743281251937,1.11108203,601.38,600.41,0.33310571]
[1743281253039,1.11108203,601.37,600.41,0.33310571]
[1743281253437,1.56009196,601.58,600.41,0.33310571]
[1743281253639,5.12604827,601.57,600.41,0.33310571]
[1743281253835,4.2310912,601.56,600.41,0.33310571]
[1743281254041,3.56603653,601.55,600.41,0.33310571]
[1743281254241,3.56603653,601.54,600.41,0.33310571]
[1743281254436,3.56603653,601.53,600.41,0.33310571]
[1743281254639,3.56603653,601.52,600.41,0.33310571]
[1743281254836,3.56603653,601.51,600.41,0.33310571]
[1743281255037,1.37155251,601.5,600.41,0.33310571]
[1743281255340,3.52874857,601.52,600.41,0.33310571]
[1743281255536,1.10142288,601.49,600.41,0.33310571]
[1743281256342,1.173,601.58,600.41,0.33310571]
[1743281256343,1.10142288,601.48,600.41,0.33310571]
[1743281256937,1.10142288,601.47,600.41,0.33310571]
[1743281257843,1.10142288,601.46,600.41,0.33310571]
[1743281258445,1.10142288,601.45,600.41,0.33310571]
[1743281258749,1.37288998,601.44,600.41,0.33310571]
[1743281258944,1.37288998,601.43,600.41,0.33310571]
[1743281259245,1.37288998,601.42,600.41,0.33310571]
[1743281259538,2.47431286,601.41,600.41,0.33310571]
[1743281259740,1.10142288,601.41,600.41,0.33310571]
[1743281259944,1.37270554,601.4,600.41,0.33310571]
[1743281260144,1.10142288,601.41,600.41,0.33310571]
[1743281260344,1.10142288,601.39,600.41,0.33310571]
[1743281261444,1.10142288,601.38,600.41,0.33310571]
[1743281261942,1.10142288,601.37,600.41,0.33310571]
[1743281262539,1.619,601.45,600.41,0.33310571]
[1743281262540,1.10142288,601.36,600.41,0.33310571]
[1743281263145,1.10142288,601.35,600.41,0.33310571]
[1743281263747,1.10142288,601.34,600.41,0.33310571]
[1743281264342,1.10142288,601.33,600.41,0.33310571]
[1743281265047,1.619,601.45,600.41,0.33310571]
[1743281265248,1.37288461,601.44,600.41,0.33310571]
[1743281265447,1.37288461,601.43,600.41,0.33310571]
[1743281265642,1.37288461,601.42,600.41,0.33310571]
[1743281265841,2.44888461,601.41,600.41,0.33310571]
[1743281266046,1.37288461,601.4,600.41,0.33310571]
[1743281266247,1.076,601.41,600.41,0.33310571]
[1743281266248,1.37339904,601.39,600.41,0.33310571]
[1743281266448,1.10251932,601.39,600.41,0.33310571]
[1743281267543,1.10251932,601.38,600.41,0.33310571]
[1743281268150,1.10251932,601.37,600.41,0.33310571]
[1743281268848,1.10251932,601.36,600.41,0.33310571]
[1743281269549,1.10251932,601.35,600.41,0.33310571]
[1743281270144,1.10251932,601.34,600.41,0.33310571]
[1743281271146,1.076,601.41,600.41,0.33310571]
[1743281271544,1.1040998,601.4,600.41,0.33310571]
[1743281272049,1.1040998,601.39,600.41,0.33310571]
[1743281272446,1.1040998,601.38,600.41,0.33310571]
[1743281272949,1.1040998,601.38,600.45,1.24038505]
[1743281273149,1.1040998,601.37,600.45,1.24038505]
[1743281273346,1.1040998,601.37,600.46,0.33307797]
[1743281273951,1.1040998,601.36,600.46,0.33307797]
[1743281274453,1.076,601.41,600.52,1.24038505]
[1743281274651,1.076,601.41,600.53,0.33303914]
[1743281275246,1.10499174,601.4,600.53,0.33303914]
[1743281276546,1.10499174,601.39,600.58,1.24038505]
[1743281276746,1.10499174,601.39,600.59,0.33300587]
[1743281277153,1.076,601.41,600.59,0.33300587]
[1743281277654,1.10620809,601.4,600.59,0.33300587]
[1743281278054,1.076,601.41,600.59,0.33300587]
[1743281278755,1.076,601.41,600.68,1.24038505]
[1743281281458,1.076,601.41,600.65,1.24038505]
[1743281283262,1.076,601.41,600.66,1.24038505]
[1743281285558,1.076,601.41,600.78,1.24038505]
[1743281286959,1.619,601.45,600.88,1.24038505]
[1743281288260,1.619,601.45,600.92,1.24038505]
[1743281289860,2.46,601.45,600.92,1.24038505]
[1743281290059,2.46,601.45,600.73,0.28944282]
[1743281290060,2.46,601.45,600.85,1.24038505]
[1743281291663,2.46,601.45,600.9,1.24038505]
[1743281293663,2.46,601.45,600.78,0.28943199]
[1743281293664,2.46,601.45,600.85,1.24038505]
[1743281294165,1.11348671,601.44,600.85,1.24038505]
[1743281294764,1.11348671,601.43,600.85,1.24038505]
[1743281295258,1.11348671,601.42,600.85,1.24038505]
[1743281295661,1.38945954,601.41,600.81,1.24038505]
[1743281295962,1.11348671,601.42,600.81,1.24038505]
[1743281296159,1.11348671,601.4,600.81,1.24038505]
[1743281296660,1.11348671,601.39,600.81,1.24038505]
[1743281297361,0.999,601.38,600.81,1.24038505]
[1743281297558,1.39166823,601.37,600.81,1.24038505]
[1743281297762,2.11248671,601.38,600.81,1.24038505]
[1743281297957,1.39164431,601.37,600.81,1.24038505]
[1743281298160,1.39164431,601.36,600.81,1.24038505]
[1743281298463,1.39240022,601.35,600.81,1.24038505]
[1743281298664,1.39243641,601.34,600.81,1.24038505]
[1743281298864,1.11348671,601.35,600.81,1.24038505]
[1743281299265,1.11348671,601.34,600.81,1.24038505]
[1743281299567,1.11348671,601.34,600.76,0.28948255]
[1743281299568,1.11348671,601.34,600.79,1.24038505]
[1743281299760,1.11348671,601.33,600.79,1.24038505]
[1743281300368,1.11348671,601.32,600.79,1.24038505]
[1743281300963,1.11348671,601.32,600.83,1.24038505]
[1743281301158,1.027,601.36,600.83,1.24038505]
[1743281302160,1.11908469,601.35,600.83,1.24038505]
[1743281302765,1.027,601.36,600.83,1.24038505]
[1743281302766,1.11908469,601.34,600.83,1.24038505]
[1743281302963,1.11908469,601.34,600.82,1.24038505]
[1743281304463,1.027,601.36,600.82,1.24038505]
[1743281305161,1.11931583,601.35,600.82,1.24038505]
[1743281305568,1.11931583,601.34,600.82,1.24038505]
[1743281306368,1.027,601.36,600.82,1.24038505]
[1743281306562,1.027,601.36,600.8,0.2894681]
[1743281306563,1.027,601.36,600.86,1.24038505]
[1743281307363,1.12007772,601.35,600.86,1.24038505]
[1743281308068,1.12007772,601.34,600.86,1.24038505]
[1743281308871,1.12007772,601.34,600.8,1.52985315]
[1743281309165,1.12007772,601.33,600.8,1.52985315]
[1743281309568,1.12007772,601.32,600.8,1.52985315]
[1743281309767,1.12007772,601.32,600.8,1.24038505]
[1743281310164,1.12007772,601.32,600.8,1.52985797]
[1743281310471,1.12007772,601.31,600.8,1.52985797]
[1743281310873,1.12007772,601.31,600.84,1.24038505]
[1743281311466,1.12007772,601.3,600.84,1.24038505]
[1743281311666,2.73907772,601.3,600.84,1.24038505]
[1743281312272,1.12007772,601.29,600.84,1.24038505]
[1743281312872,1.12007772,601.29,600.8,0.28947292]
[1743281312873,1.619,601.3,600.8,1.24038505]
[1743281313172,1.619,601.3,600.81,0.28947171]
[1743281314376,1.12054594,601.29,600.81,0.28947171]
[1743281314773,1.619,601.3,600.81,0.28947171]
[1743281314973,1.132,601.28,600.81,0.28947171]
[1743281315869,1.132,601.28,600.6,1.24038505]
[1743281316069,1.132,601.28,600.61,0.33299478]
[1743281316268,1.132,601.28,600.81,0.28950182]
[1743281316469,1.132,601.28,600.65,1.24038505]
[1743281317168,1.132,601.28,600.66,0.2895247]
[1743281317574,1.12090129,601.27,600.66,0.2895247]
[1743281317974,1.39597406,601.26,600.66,0.2895247]
[1743281318171,1.12090129,601.26,600.66,0.2895247]
[1743281318770,1.12090129,601.25,600.61,0.33299478]
[1743281319273,1.12090129,601.25,600.66,0.28953192]
[1743281319472,1.132,601.28,600.66,0.28953192]
[1743281319671,1.39565705,601.27,600.66,0.28953192]
[1743281319870,1.12064447,601.24,600.66,0.28953192]
[1743281320271,1.12064447,601.24,600.69,1.24038505]
[1743281320970,1.12064447,601.23,600.69,1.24038505]
[1743281322175,1.12064447,601.22,600.69,1.24038505]
[1743281322880,2.5153586,601.21,600.69,1.24038505]
[1743281323081,1.12064447,601.21,600.69,1.24038505]
[1743281323481,1.12064447,601.21,600.61,0.33299478]
[1743281324181,1.12064447,601.2,600.61,0.33299478]
[1743281324582,1.12064447,601.19,600.61,0.33299478]
[1743281325181,1.12064447,601.18,600.61,0.33299478]
[1743281326184,1.132,601.28,600.61,0.33299478]
[1743281326385,1.39445523,601.27,600.61,0.33299478]
[1743281326685,2.51415544,601.26,600.61,0.33299478]
[1743281326886,1.11970021,601.26,600.61,0.33299478]
[1743281327680,1.11970021,601.25,600.61,0.33299478]
[1743281328488,1.11970021,601.24,600.61,0.33299478]
[1743281329388,1.132,601.28,600.61,0.33299478]
[1743281329389,1.11970021,601.23,600.61,0.33299478]
[1743281330487,1.132,601.28,600.61,0.33299478]
[1743281331089,1.12022506,601.27,600.61,0.33299478]
[1743281331885,1.12022506,601.26,600.61,0.33299478]
[1743281332085,2.17822506,601.26,600.61,0.33299478]
[1743281332390,1.058,601.26,600.61,0.33299478]
[1743281335494,0.86,601.25,600.61,0.33299478]
[1743281337892,0.86,601.25,600.68,1.24038505]
[1743281338687,1.11927868,601.24,600.68,1.24038505]
[1743281339193,1.11927868,601.24,600.61,0.33299478]
[1743281339393,0.86,601.25,600.61,0.33299478]
[1743281339394,1.11927868,601.23,600.61,0.33299478]
[1743281340089,1.11927868,601.22,600.61,0.33299478]
[1743281340694,0.856,601.21,600.61,0.33299478]
[1743281340994,1.97527868,601.21,600.61,0.33299478]
[1743281341594,1.11927868,601.2,600.61,0.33299478]
[1743281342088,0.856,601.21,600.61,0.33299478]
[1743281342089,1.11927868,601.19,600.61,0.33299478]
[1743281342694,0.856,601.21,600.61,0.33299478]
[1743281343390,1.11824388,601.2,600.61,0.33299478]
[1743281344292,1.11824388,601.19,600.61,0.33299478]
[1743281345093,1.11824388,601.18,600.61,0.33299478]
[1743281345496,0.856,601.21,600.61,0.33299478]
[1743281345791,1.39189747,601.2,600.61,0.33299478]
[1743281345991,1.39189747,601.19,600.61,0.33299478]
[1743281346196,1.11766353,601.2,600.61,0.33299478]
[1743281346496,1.11766353,601.18,600.61,0.33299478]
[1743281346897,1.11766353,601.17,600.61,0.33299478]
[1743281347999,1.11766353,601.16,600.61,0.33299478]
[1743281348197,1.11766353,601.16,600.52,0.28959336]
[1743281348598,0.856,601.21,600.52,0.28959336]
[1743281348796,0.856,601.21,600.47,1.24038505]
[1743281349191,1.11708485,601.2,600.51,0.289603]
[1743281350198,1.11708485,601.19,600.51,0.289603]
[1743281351097,0.856,601.21,600.51,0.289603]
[1743281351799,0.856,601.21,600.44,1.24038505]
[1743281351992,0.856,601.21,600.45,0.33308352]
[1743281352195,0.856,601.21,600.51,0.28957288]
[1743281352397,1.311,601.2,600.51,0.28957288]
[1743281352599,1.311,601.2,600.52,1.24038505]
[1743281354293,1.311,601.2,600.51,0.28957288]
[1743281357998,1.311,601.2,600.48,1.24038505]